fUST/lending_fUST_20250625
["ID","MTS","AMOUNT","RATE_DAILY","PERIOD"]
[367499281,1750827056546,-965.0,0.00021031,2]
[367499282,1750827056555,-2161.0,0.00021031,2]
[367499283,1750827056565,-654.0,0.00021031,2]
[367499284,1750827056574,-406.0,0.00021031,2]
[367499285,1750827056584,-150.0,0.00021031,2]
[367499286,1750827056593,-1107.28,0.00021039,2]
[367499287,1750827056602,-1104.88,0.00021039,2]
[367499288,1750827056611,-4093.76,0.00021039,2]
[367499289,1750827056621,-1104.78,0.00021039,2]
[367499290,1750827056630,-642.91,0.00021039,2]
[367499291,1750827056640,-843.35,0.00021039,2]
[367499292,1750827056650,-1197.39,0.00021039,2]
[367499293,1750827056659,-1953.87,0.00021039,2]
[367499294,1750827056668,-460.0,0.0002104,2]
[367499295,1750827056678,-465.54,0.0002104,2]
[367499296,1750827056687,-2489.45,0.0002104,2]
[367499297,1750827056697,-460.0,0.0002104,2]
[367499298,1750827056706,-770.29,0.0002104,2]
[367499299,1750827056715,-460.0,0.00021041,2]
[367499300,1750827056724,-151.0,0.00021041,2]
[367499301,1750827056734,-234.823165,0.00021041,2]
[367499302,1750827056743,-151.0,0.00021041,2]
[367499303,1750827056752,-1214.54,0.00021041,2]
[367499304,1750827056762,-273.755072,0.00021041,2]
[367499305,1750827056771,-703.52,0.00021041,2]
[367499306,1750827056784,-272.293385,0.00021041,2]
[367499307,1750827056794,-1213.37,0.00021041,2]
[367499308,1750827056804,-272.293385,0.00021041,2]
[367499309,1750827056814,-417.850845,0.00021041,2]
[367499310,1750827056823,-417.850845,0.00021041,2]
[367499311,1750827056832,-1319.97,0.00021041,2]
[367499312,1750827056841,-801.55,0.00021041,2]
[367499313,1750827056850,-479.98,0.00021041,2]
[367499314,1750827056859,-151.0,0.00021041,2]
[367499315,1750827056868,-194.312461,0.00021041,2]
[367499316,1750827056877,-240.948126,0.00021041,2]
[367499317,1750827056887,-551.98,0.00021041,2]
[367499318,1750827056896,-151.0,0.00021041,2]
[367499319,1750827056905,-151.0,0.00021041,2]
[367499320,1750827056914,-248.0386,0.00021041,2]
[367499321,1750827056923,-151.0,0.00021041,2]
[367499322,1750827056933,-461.69,0.00021043,2]
[367499323,1750827056943,-151.0,0.00021043,2]
[367499324,1750827056952,-151.0,0.00021043,2]
[367499325,1750827056962,-151.0,0.00021043,2]
[367499326,1750827056971,-4000.0,0.00021051,4]
[367499327,1750827056980,-500.0,0.00021095,16]
[367499328,1750827056989,-574.683808,0.00021178,2]
[367499329,1750827056998,-308.9288489,0.00021178,2]
[367499330,1750827057007,-159.1939926,0.00021178,2]
[367499331,1750827057017,-574.9477627,0.00021178,2]
[367499332,1750827057025,-177.4156324,0.00021178,2]
[367499333,1750827057035,-574.9477627,0.00021178,2]
[367499334,1750827057044,-159.1939926,0.00021178,2]
[367499335,1750827057053,-159.1939926,0.00021178,2]
[367499336,1750827057063,-574.3418977,0.00021178,2]
[367499337,1750827057072,-177.4156324,0.00021178,2]
[367499338,1750827057081,-158.9753426,0.00021178,2]
[367499339,1750827057091,-177.1999198,0.00021178,2]
[367499340,1750827057100,-151.0,0.00021183,4]
[367499341,1750827057109,-354.7653312,0.00021205,2]
[367499342,1750827057118,-151.0,0.0002121,2]
[367499343,1750827057127,-156.597307,0.0002121,2]
[367499344,1750827057136,-151.0,0.0002121,2]
[367499345,1750827057144,-172.790582,0.0002121,2]
[367499346,1750827057153,-250.46802474,0.00021234,2]
[367499347,1750827057162,-4353.14994727,0.00021245,4]
[367499348,1750827057171,-500.0,0.00021265,2]
[367499349,1750827057180,-500.0,0.00021265,2]
[367499350,1750827057189,-500.0,0.00021265,2]
[367499351,1750827057198,-500.0,0.00021265,2]
[367499352,1750827057207,-500.0,0.00021265,2]
[367499353,1750827057215,-500.0,0.00021265,2]
[367499354,1750827057224,-500.0,0.00021265,2]
[367499355,1750827057234,-500.0,0.00021265,2]
[367499356,1750827057243,-500.0,0.00021265,2]
[367499357,1750827057252,-500.0,0.00021265,2]
[367499358,1750827057261,-500.0,0.00021265,2]
[367499359,1750827057271,-500.0,0.00021265,2]
[367499360,1750827057280,-500.0,0.00021265,2]
[367499361,1750827057289,-500.0,0.00021265,2]
[367499362,1750827057298,-2200.0,0.00021287,2]
[367499363,1750827057307,-500.0,0.00021306,2]
[367499364,1750827057316,-500.0,0.00021306,2]
[367499365,1750827057325,-500.0,0.00021306,2]
[367499366,1750827057334,-600.0,0.00021306,2]
[367499367,1750827057343,-500.0,0.00021306,2]
[367499368,1750827057352,-500.0,0.00021306,2]
[367499369,1750827057361,-500.0,0.00021306,2]
[367499370,1750827057369,-500.0,0.00021306,2]
[367499371,1750827057378,-1107.28,0.00021313,2]
[367499372,1750827057388,-1104.88,0.00021313,2]
[367499373,1750827057397,-4093.76,0.00021313,2]
[367499374,1750827057406,-1104.78,0.00021313,2]
[367499375,1750827057416,-642.91,0.00021313,2]
[367499376,1750827057425,-843.35,0.00021313,2]
[367499377,1750827057434,-1197.39,0.00021313,2]
[367499378,1750827057443,-1953.87,0.00021313,2]
[367499379,1750827057452,-460.0,0.00021314,2]
[367499380,1750827057461,-465.54,0.00021314,2]
[367499381,1750827057471,-2489.45,0.00021314,2]
[367499382,1750827057479,-460.0,0.00021314,2]
[367499383,1750827057488,-770.29,0.00021314,2]
[367499384,1750827057497,-460.0,0.00021315,2]
[367499385,1750827057506,-1214.54,0.00021315,2]
[367499386,1750827057515,-703.52,0.00021315,2]
[367499387,1750827057525,-1213.37,0.00021315,2]
[367499388,1750827057535,-1319.97,0.00021315,2]
[367499389,1750827057544,-801.55,0.00021315,2]
[367499390,1750827057553,-479.98,0.00021315,2]
[367499391,1750827057563,-255.361164,0.00021316,2]
[367499392,1750827057572,-216.931421,0.00021316,2]
[367499393,1750827057582,-151.0,0.00021316,2]
[367499394,1750827057592,-151.0,0.00021316,2]
[367499395,1750827057601,-461.69,0.00021317,2]
[367499396,1750827057610,-500.0,0.0002134,2]
[367499397,1750827057619,-533.24236596,0.0002134,2]
[367499398,1750827057628,-500.0,0.0002134,2]
[367499399,1750827057638,-500.0,0.0002134,2]
[367499400,1750827057647,-500.0,0.0002134,2]
[367499401,1750827057656,-500.0,0.0002134,2]
[367499402,1750827057666,-500.0,0.0002134,2]
[367499403,1750827057675,-500.0,0.0002134,2]
[367499404,1750827057684,-500.0,0.0002134,2]
[367499405,1750827057800,-500.0,0.0002134,2]
[367499406,1750827057809,-230.46684942,0.0002134,2]
[367499407,1750827057818,-500.0,0.00021356,2]
[367499408,1750827057828,-500.0,0.00021369,17]
[367499409,1750827057837,-366.0085437,0.0002137,2]
[367499410,1750827057846,-366.0085437,0.0002137,2]
[367499411,1750827057855,-366.0085437,0.0002137,2]
[367499412,1750827057864,-366.0085437,0.0002137,2]
[367499413,1750827057873,-151.0,0.00021455,4]
[367499414,1750827057881,-151.0,0.000215,4]
[367499415,1750827057891,-1365.49,0.00021526,2]
[367499416,1750827057899,-4353.14994727,0.00021555,5]
[367499417,1750827057908,-1469.500001,0.0002156,4]
[367499418,1750827057917,-1107.28,0.00021587,2]
[367499419,1750827057927,-1104.88,0.00021587,2]
[367499420,1750827057936,-4093.76,0.00021587,2]
[367499421,1750827057945,-1104.78,0.00021587,2]
[367499422,1750827057954,-642.91,0.00021587,2]
[367499423,1750827057963,-843.35,0.00021587,2]
[367499424,1750827057972,-1197.39,0.00021587,2]
[367499425,1750827057981,-1953.87,0.00021587,2]
[367499426,1750827057991,-460.0,0.00021588,2]
[367499427,1750827058000,-465.54,0.00021588,2]
[367499428,1750827058011,-2489.45,0.00021588,2]
[367499429,1750827058020,-460.0,0.00021588,2]
[367499430,1750827058030,-770.29,0.00021588,2]
[367499431,1750827058041,-460.0,0.00021589,2]
[367499432,1750827058051,-1214.54,0.00021589,2]
[367499433,1750827058062,-703.52,0.00021589,2]
[367499434,1750827058071,-1213.37,0.00021589,2]
[367499435,1750827058080,-1319.97,0.00021589,2]
[367499436,1750827058090,-801.55,0.00021589,2]
[367499437,1750827058099,-479.98,0.00021589,2]
[367499438,1750827058108,-217.066384,0.0002159,2]
[367499439,1750827058118,-461.69,0.00021591,2]
[367499440,1750827058126,-1365.49,0.00021626,2]
[367499441,1750827058137,-500.0,0.00021643,18]
[367499442,1750827058146,-574.9477627,0.00021671,2]
[367499443,1750827058156,-158.3161471,0.00021671,2]
[367499444,1750827058166,-159.1939926,0.00021699,2]
[367499445,1750827058175,-159.1939926,0.00021699,2]
[367499446,1750827058184,-159.1939926,0.00021699,2]
[367499447,1750827058193,-159.1939926,0.00021699,2]
[367499448,1750827058202,-1365.49,0.00021726,2]
[367499449,1750827058211,-151.0,0.00021728,5]
[367499450,1750827058221,-2681.4967068,0.0002178,2]
[367499451,1750827058230,-12500.0,0.0002178,2]
[367499452,1750827058240,-12500.0,0.0002178,2]
[367499453,1750827058249,-574.9477627,0.00021781,2]
[367499454,1750827058259,-412.045819,0.0002181,2]
[367499455,1750827058269,-412.045819,0.0002181,2]
[367499456,1750827058278,-1609.85934482,0.0002181,2]
[367499457,1750827058300,-3785.86014099,0.0002181,2]
[367499458,1750827193444,3000.0,0.00023,30]
[367499459,1750827343639,286.6482499,0.00015998,2]
[367499460,1750827646498,1681.5062811,0.00015929,2]
[367499461,1750827672423,742.5239789,0.00015929,2]
[367499472,1750828036723,160.63345,0.00013699,2]
[367499488,1750828232321,-169.0,0.00016438,3]
[367499490,1750828232330,-276.07900292,0.00016826,2]
[367499492,1750828232339,-725.26,0.00016917,3]
[367499494,1750828232349,-241.74,0.00016918,3]
[367499496,1750828232358,-243.0,0.00016924,2]
[367499498,1750828232367,-300.0,0.00016924,2]
[367499500,1750828232378,-300.0,0.00016924,2]
[367499501,1750828232388,-460.529895,0.00016924,2]
[367499502,1750828232397,-460.0,0.00016924,2]
[367499503,1750828232406,-460.0,0.00016924,2]
[367499505,1750828232415,-300.0,0.00016925,2]
[367499507,1750828232425,-470.25,0.00016925,2]
[367499509,1750828232434,-460.0,0.00016925,2]
[367499511,1750828232445,-460.0,0.00016925,2]
[367499513,1750828232455,-460.0,0.00016925,2]
[367499515,1750828232464,-460.0,0.00016925,2]
[367499517,1750828232473,-381.89750093,0.00016925,2]
[367499519,1750828232485,-78.10249907,0.00016925,2]
[367499521,1750828232495,-460.0,0.00016925,2]
[367499523,1750828232504,-460.0,0.00016925,2]
[367499525,1750828232513,-460.0,0.00016925,2]
[367499527,1750828232522,-460.0,0.00016925,2]
[367499528,1750828232531,-376.50975469,0.00016925,2]
[367499529,1750828232543,-83.49024531,0.00016925,2]
[367499530,1750828232552,-457.24295903,0.00016925,2]
[367499531,1750828232561,-484.12,0.00016925,2]
[367499532,1750828232570,-460.0,0.00016925,2]
[367499533,1750828232579,-460.0,0.00016925,2]
[367499534,1750828232588,-460.0,0.00016925,2]
[367499535,1750828232597,-574.56,0.00016925,2]
[367499536,1750828232606,-460.0,0.00016925,2]
[367499537,1750828232616,-460.0,0.00016925,2]
[367499538,1750828232625,-460.0,0.00016925,2]
[367499539,1750828232634,-790.73,0.00016925,2]
[367499540,1750828232643,-430.0,0.00016925,2]
[367499541,1750828232652,-515.57852443,0.00016925,2]
[367499542,1750828232661,-460.0,0.00016925,2]
[367499543,1750828232670,-460.0,0.00016925,2]
[367499544,1750828232679,-381.9588752,0.00016925,2]
[367499545,1750828232688,-214.91013734,0.00016925,2]
[367499546,1750828232710,-245.08986266,0.00016925,2]
[367499547,1750828232720,-22.79994226,0.00016925,2]
[367499551,1750828238349,-460.0,0.00016924,2]
[367499552,1750828238359,-437.20005774,0.00016925,2]
[367499553,1750828238369,-460.0,0.00016925,2]
[367499554,1750828238380,-361.68697755,0.00016925,2]
[367499555,1750828238390,-1856.24,0.00016925,2]
[367499556,1750828238399,-765.63,0.00016925,2]
[367499557,1750828238409,-460.0,0.00016925,2]
[367499558,1750828238418,-460.0,0.00016925,2]
[367499559,1750828238429,-802.0,0.00016925,2]
[367499560,1750828238438,-460.24682512,0.00016925,2]
[367499561,1750828238448,-460.0,0.00016925,2]
[367499562,1750828238459,-460.0,0.00016925,2]
[367499563,1750828238469,-460.0,0.00016925,2]
[367499564,1750828238479,-460.0,0.00016925,2]
[367499565,1750828238489,-460.0,0.00016925,2]
[367499566,1750828238499,-460.0,0.00016925,2]
[367499567,1750828238508,-460.0,0.00016925,2]
[367499568,1750828238526,-460.0,0.00016925,2]
[367499569,1750828238538,-460.0,0.00016925,2]
[367499570,1750828238548,-556.8,0.00016925,2]
[367499571,1750828238557,-460.0,0.00016925,2]
[367499572,1750828238567,-504.7,0.00016925,2]
[367499573,1750828238577,-460.0,0.00016925,2]
[367499574,1750828238587,-1047.37,0.00016925,2]
[367499575,1750828238596,-460.0,0.00016925,2]
[367499576,1750828238606,-460.0,0.00016925,2]
[367499577,1750828238615,-516.6,0.00016925,2]
[367499578,1750828238625,-460.0,0.00016925,2]
[367499579,1750828238636,-460.0,0.00016925,2]
[367499580,1750828238647,-460.0,0.00016925,2]
[367499581,1750828238656,-460.0,0.00016925,2]
[367499582,1750828238666,-460.0,0.00016925,2]
[367499583,1750828238675,-460.0,0.00016925,2]
[367499584,1750828238685,-469.09097425,0.00016925,2]
[367499585,1750828238695,-460.0,0.00016925,2]
[367499586,1750828238704,-460.0,0.00016925,2]
[367499587,1750828238714,-427.02451798,0.00016926,2]
[367499588,1750828238724,-460.0,0.00016926,2]
[367499589,1750828238734,-460.0,0.00016926,2]
[367499590,1750828238744,-460.0,0.00016926,2]
[367499591,1750828238753,-460.0,0.00016926,2]
[367499592,1750828238763,-460.0,0.00016926,2]
[367499593,1750828238772,-401.19529279,0.00016926,2]
[367499594,1750828238782,-460.0,0.00016926,2]
[367499595,1750828238791,-460.0,0.00016926,2]
[367499596,1750828238801,-460.0,0.00016926,2]
[367499597,1750828238810,-460.0,0.00016926,2]
[367499598,1750828238819,-460.0,0.00016926,2]
[367499599,1750828238829,-460.0,0.00016926,2]
[367499600,1750828238838,-460.0,0.00016926,2]
[367499601,1750828238848,-460.0,0.00016926,2]
[367499602,1750828238857,-460.0,0.00016926,2]
[367499603,1750828238867,-460.0,0.00016926,2]
[367499604,1750828238876,-500.0,0.00016926,2]
[367499605,1750828238885,-500.0,0.00016926,2]
[367499606,1750828238895,-500.0,0.00016926,2]
[367499607,1750828238907,-500.0,0.00016926,2]
[367499608,1750828238917,-500.0,0.00016926,2]
[367499609,1750828238927,-500.0,0.00016926,2]
[367499610,1750828238937,-460.0,0.00016926,2]
[367499611,1750828238947,-460.0,0.00016926,2]
[367499612,1750828238957,-460.0,0.00016926,2]
[367499613,1750828238966,-460.0,0.00016926,2]
[367499614,1750828238976,-460.0,0.00016926,2]
[367499615,1750828238985,-464.77683618,0.00016926,2]
[367499616,1750828238995,-460.0,0.00016926,2]
[367499617,1750828239005,-460.0,0.00016926,2]
[367499618,1750828239014,-460.0,0.00016926,2]
[367499619,1750828239024,-460.0,0.00016926,2]
[367499620,1750828239034,-460.0,0.00016926,2]
[367499621,1750828239043,-460.0,0.00016926,2]
[367499622,1750828239053,-1188.89,0.00016926,2]
[367499623,1750828239063,-477.9,0.00016926,2]
[367499624,1750828239073,-460.0,0.00016926,2]
[367499625,1750828239083,-643.16,0.00016926,2]
[367499626,1750828239092,-460.0,0.00016926,2]
[367499627,1750828239102,-460.0,0.00016926,2]
[367499628,1750828239111,-460.0,0.00016926,2]
[367499629,1750828239121,-460.0,0.00016926,2]
[367499630,1750828239134,-460.0,0.00016926,2]
[367499631,1750828239144,-956.17,0.00016926,2]
[367499632,1750828239153,-460.0,0.00016926,2]
[367499633,1750828239163,-460.0,0.00016926,2]
[367499634,1750828239172,-460.0,0.00016926,2]
[367499635,1750828239181,-460.0,0.00016926,2]
[367499636,1750828239191,-460.0,0.00016926,2]
[367499637,1750828239201,-547.02,0.00016926,2]
[367499638,1750828239211,-460.0,0.00016926,2]
[367499639,1750828239221,-460.0,0.00016926,2]
[367499640,1750828239231,-467.13,0.00016926,2]
[367499641,1750828239240,-426.65,0.00016926,2]
[367499642,1750828239250,-464.38153812,0.00016926,2]
[367499643,1750828239259,-415.47623179,0.00016926,2]
[367499644,1750828239268,-460.0,0.00016926,2]
[367499645,1750828239278,-460.0,0.00016926,2]
[367499646,1750828239287,-676.68,0.00016926,2]
[367499647,1750828239297,-460.0,0.00016926,2]
[367499648,1750828239307,-460.0,0.00016926,2]
[367499649,1750828239316,-460.0,0.00016926,2]
[367499650,1750828239326,-460.0,0.00016926,2]
[367499651,1750828239335,-501.9703757,0.00016926,2]
[367499652,1750828239344,-495.42,0.00016926,2]
[367499653,1750828239353,-460.0,0.00016926,2]
[367499654,1750828239362,-460.0,0.00016926,2]
[367499655,1750828239372,-746.51,0.00016926,2]
[367499656,1750828239383,-460.0,0.00016926,2]
[367499657,1750828239392,-460.0,0.00016926,2]
[367499658,1750828239403,-587.31,0.00016926,2]
[367499659,1750828239412,-460.0,0.00016926,2]
[367499660,1750828239423,-460.0,0.00016926,2]
[367499661,1750828239432,-462.94990179,0.00016926,2]
[367499662,1750828239441,-518.47,0.00016926,2]
[367499663,1750828239451,-460.0,0.00016926,2]
[367499664,1750828239461,-460.0,0.00016926,2]
[367499665,1750828239471,-460.0,0.00016926,2]
[367499666,1750828239480,-460.0,0.00016926,2]
[367499667,1750828239490,-460.0,0.00016926,2]
[367499668,1750828239499,-460.0,0.00016926,2]
[367499669,1750828239509,-818.45,0.00016926,2]
[367499670,1750828239519,-460.0,0.00016926,2]
[367499671,1750828239528,-460.0,0.00016926,2]
[367499672,1750828239537,-460.0,0.00016926,2]
[367499673,1750828239547,-460.0,0.00016926,2]
[367499674,1750828239556,-460.0,0.00016926,2]
[367499675,1750828239566,-460.0,0.00016926,2]
[367499676,1750828239575,-460.0,0.00016926,2]
[367499677,1750828239584,-460.0,0.00016926,2]
[367499678,1750828239595,-460.0,0.00016926,2]
[367499680,1750828239604,-460.0,0.00016926,2]
[367499681,1750828239613,-460.0,0.00016926,2]
[367499682,1750828239622,-1254.3,0.00016926,2]
[367499683,1750828239631,-460.0,0.00016926,2]
[367499684,1750828239640,-460.0,0.00016926,2]
[367499685,1750828239649,-460.0,0.00016926,2]
[367499686,1750828239658,-460.0,0.00016926,2]
[367499687,1750828239667,-460.0,0.00016926,2]
[367499688,1750828239677,-460.0,0.00016926,2]
[367499689,1750828239686,-460.0,0.00016926,2]
[367499690,1750828239695,-460.0,0.00016926,2]
[367499691,1750828239705,-460.0,0.00016926,2]
[367499692,1750828239714,-460.0,0.00016926,2]
[367499693,1750828239723,-460.0,0.00016926,2]
[367499694,1750828239732,-460.0,0.00016926,2]
[367499695,1750828239741,-460.0,0.00016926,2]
[367499696,1750828239751,-460.0,0.00016926,2]
[367499697,1750828239760,-673.47,0.00016926,2]
[367499698,1750828239769,-460.0,0.00016926,2]
[367499699,1750828239779,-460.0,0.00016926,2]
[367499700,1750828239788,-467.79265089,0.00016926,2]
[367499701,1750828239798,-460.0,0.00016926,2]
[367499702,1750828239807,-460.0,0.00016926,2]
[367499703,1750828239816,-460.0,0.00016926,2]
[367499704,1750828239826,-460.0,0.00016926,2]
[367499705,1750828239835,-460.0,0.00016927,2]
[367499707,1750828239844,-460.0,0.00016927,2]
[367499709,1750828239854,-460.0,0.00016927,2]
[367499711,1750828239863,-460.0,0.00016927,2]
[367499713,1750828239872,-460.0,0.00016927,2]
[367499715,1750828239881,-460.0,0.00016927,2]
[367499717,1750828239891,-460.0,0.00016927,2]
[367499718,1750828239900,-460.0,0.00016927,2]
[367499720,1750828239909,-460.0,0.00016927,2]
[367499722,1750828239919,-460.0,0.00016927,2]
[367499724,1750828239928,-460.0,0.00016927,2]
[367499726,1750828239937,-460.0,0.00016927,2]
[367499729,1750828239948,-460.0,0.00016927,2]
[367499731,1750828239957,-460.0,0.00016927,2]
[367499733,1750828239967,-460.0,0.00016927,2]
[367499735,1750828239977,-460.0,0.00016927,2]
[367499737,1750828239986,-460.0,0.00016927,2]
[367499739,1750828239995,-460.0,0.00016927,2]
[367499740,1750828240006,-460.0,0.00016927,2]
[367499743,1750828240015,-460.0,0.00016927,2]
[367499746,1750828240025,-460.0,0.00016927,2]
[367499748,1750828240035,-460.0,0.00016927,2]
[367499750,1750828240044,-465.21859252,0.00016927,2]
[367499752,1750828240054,-578.08,0.00016927,2]
[367499754,1750828240063,-440.0,0.00016927,2]
[367499756,1750828240073,-460.0,0.00016927,2]
[367499757,1750828240082,-460.0,0.00016927,2]
[367499759,1750828240091,-460.0,0.00016927,2]
[367499761,1750828240100,-460.0,0.00016927,2]
[367499763,1750828240110,-460.0,0.00016927,2]
[367499766,1750828240119,-460.0,0.00016927,2]
[367499769,1750828240128,-639.53,0.00016927,2]
[367499771,1750828240138,-460.0,0.00016927,2]
[367499773,1750828240147,-460.0,0.00016927,2]
[367499774,1750828240156,-460.0,0.00016927,2]
[367499776,1750828240165,-500.0,0.00016927,2]
[367499778,1750828240174,-460.0,0.00016927,2]
[367499781,1750828240183,-500.0,0.00016927,2]
[367499783,1750828240192,-460.0,0.00016927,2]
[367499785,1750828240201,-460.0,0.00016927,2]
[367499787,1750828240210,-460.0,0.00016927,2]
[367499789,1750828240219,-460.0,0.00016927,2]
[367499790,1750828240228,-460.0,0.00016927,2]
[367499792,1750828240237,-460.0,0.00016927,2]
[367499794,1750828240247,-460.0,0.00016927,2]
[367499796,1750828240256,-460.0,0.00016927,2]
[367499798,1750828240265,-460.0,0.00016927,2]
[367499800,1750828240274,-460.0,0.00016927,2]
[367499802,1750828240283,-460.0,0.00016927,2]
[367499804,1750828240293,-460.0,0.00016927,2]
[367499806,1750828240302,-460.0,0.00016927,2]
[367499808,1750828240311,-460.0,0.00016927,2]
[367499810,1750828240320,-460.0,0.00016927,2]
[367499812,1750828240330,-460.0,0.00016927,2]
[367499815,1750828240339,-460.0,0.00016927,2]
[367499817,1750828240348,-596.2,0.00016927,2]
[367499819,1750828240357,-469.74,0.00016927,2]
[367499821,1750828240367,-460.0,0.00016927,2]
[367499823,1750828240376,-460.0,0.00016927,2]
[367499825,1750828240390,-194.21796055,0.00016927,2]
[367499827,1750828240399,-460.0,0.00016927,2]
[367499829,1750828240410,-548.78,0.00016927,2]
[367499831,1750828240419,-499.08,0.00016927,2]
[367499833,1750828240430,-460.0,0.00016927,2]
[367499835,1750828240440,-460.0,0.00016927,2]
[367499836,1750828240450,-460.0,0.00016927,2]
[367499837,1750828240460,-460.0,0.00016927,2]
[367499838,1750828240689,-460.0,0.00016927,2]
[367499839,1750828240700,-460.0,0.00016927,2]
[367499840,1750828240709,-460.0,0.00016927,2]
[367499841,1750828240719,-460.0,0.00016927,2]
[367499842,1750828240728,-290.1785072,0.00016927,2]
[367499844,1750828240738,-460.0,0.00016927,2]
[367499845,1750828240747,-460.0,0.00016927,2]
[367499846,1750828240756,-460.0,0.00016927,2]
[367499847,1750828240765,-460.0,0.00016927,2]
[367499848,1750828240774,-460.0,0.00016927,2]
[367499849,1750828240784,-460.0,0.00016927,2]
[367499850,1750828240793,-411.28889902,0.00016927,2]
[367499851,1750828240803,-460.0,0.00016927,2]
[367499852,1750828240812,-460.0,0.00016927,2]
[367499853,1750828240821,-460.0,0.00016927,2]
[367499854,1750828240831,-460.0,0.00016927,2]
[367499855,1750828240840,-472.36,0.00016927,2]
[367499856,1750828240849,-460.0,0.00016927,2]
[367499857,1750828240859,-460.0,0.00016927,2]
[367499858,1750828240868,-460.0,0.00016927,2]
[367499859,1750828240877,-460.0,0.00016927,2]
[367499860,1750828240888,-460.0,0.00016927,2]
[367499861,1750828240897,-347.72595074,0.00016927,2]
[367499862,1750828240907,-433.88930115,0.00016927,2]
[367499863,1750828240917,-460.0,0.00016927,2]
[367499864,1750828240927,-460.0,0.00016927,2]
[367499865,1750828240936,-460.0,0.00016927,2]
[367499866,1750828240947,-460.0,0.00016927,2]
[367499867,1750828240956,-460.0,0.00016927,2]
[367499868,1750828240966,-460.0,0.00016927,2]
[367499869,1750828240976,-460.0,0.00016927,2]
[367499870,1750828240985,-460.0,0.00016927,2]
[367499871,1750828240994,-460.0,0.00016927,2]
[367499872,1750828241003,-460.0,0.00016927,2]
[367499873,1750828241013,-500.0,0.00016927,2]
[367499874,1750828241022,-460.0,0.00016927,2]
[367499875,1750828241031,-460.0,0.00016927,2]
[367499876,1750828241041,-460.0,0.00016927,2]
[367499877,1750828241050,-574.85,0.00016927,2]
[367499878,1750828241060,-495.64,0.00016927,2]
[367499879,1750828241069,-460.0,0.00016927,2]
[367499880,1750828241078,-460.0,0.00016927,2]
[367499881,1750828241088,-460.0,0.00016927,2]
[367499882,1750828241097,-460.0,0.00016927,2]
[367499883,1750828241107,-460.0,0.00016927,2]
[367499884,1750828241116,-460.0,0.00016927,2]
[367499885,1750828241125,-460.0,0.00016927,2]
[367499886,1750828241135,-460.0,0.00016927,2]
[367499887,1750828241144,-460.0,0.00016927,2]
[367499888,1750828241153,-460.84417477,0.00016927,2]
[367499889,1750828241163,-460.0,0.00016927,2]
[367499890,1750828241175,-460.0,0.00016927,2]
[367499891,1750828241185,-460.0,0.00016927,2]
[367499892,1750828241196,-460.0,0.00016927,2]
[367499893,1750828241205,-460.0,0.00016927,2]
[367499894,1750828241214,-461.30794641,0.00016927,2]